[Event "Titled Tuesday Blitz March 29 Early 2022"]
[White "Reprintsev, Alexander"]
[Black "Smietanska, Wiktoria"]
[WhiteFideId "14100541"]
[BlackFideId "21869359"]
[WhiteElo "2108"]
[BlackElo "1893"]
[Result "1-0"]
[Round "03"]
[TimeControl "180+1"]
[Date "2022.03.30"]
[WhiteClock "0:00:53"]
[BlackClock "0:00:32"]

1. e4 {[%clk 0:02:58]}  c5 {[%clk 0:02:59]} 2. b3 {[%clk 0:02:53]}  Nc6 {[%clk 0:02:56]} 3. Bb2 {[%clk 0:02:53]}  d5 {[%clk 0:02:56]} 4. exd5 {[%clk 0:02:53]}  Qxd5 {[%clk 0:02:57]} 5. Nc3 {[%clk 0:02:52]}  Qd7 {[%clk 0:02:55]} 6. Qf3 {[%clk 0:02:39]}  Nd4 {[%clk 0:02:51]} 7. Qd3 {[%clk 0:02:39]}  Qf5 {[%clk 0:02:38]} 8. O-O-O {[%clk 0:02:38]}  Qxf2 {[%clk 0:02:34]} 9. Nh3 {[%clk 0:02:36]}  Qf5 {[%clk 0:02:27]} 10. Ne4 {[%clk 0:01:41]}  e5 {[%clk 0:01:53]} 11. Re1 {[%clk 0:01:23]}  Be7 {[%clk 0:01:44]} 12. g4 {[%clk 0:01:18]}  Qf3 {[%clk 0:01:36]} 13. Qxf3 {[%clk 0:01:08]}  Nxf3 {[%clk 0:01:37]} 14. Re3 {[%clk 0:01:08]}  Nd4 {[%clk 0:01:27]} 15. c3 {[%clk 0:01:01]}  Nc6 {[%clk 0:01:26]} 16. Nhf2 {[%clk 0:01:00]}  Nf6 {[%clk 0:01:25]} 17. Nxf6+ {[%clk 0:00:58]}  Bxf6 {[%clk 0:01:23]} 18. Bg2 {[%clk 0:00:58]}  O-O {[%clk 0:01:22]} 19. Bxc6 {[%clk 0:00:58]}  bxc6 {[%clk 0:01:21]} 20. Ne4 {[%clk 0:00:58]}  Be7 {[%clk 0:01:20]} 21. g5 {[%clk 0:00:58]}  a5 {[%clk 0:01:15]} 22. Ba3 {[%clk 0:00:56]}  a4 {[%clk 0:01:06]} 23. Kb2 {[%clk 0:00:56]}  axb3 {[%clk 0:01:04]} 24. axb3 {[%clk 0:00:57]}  Be6 {[%clk 0:00:52]} 25. Bxc5 {[%clk 0:00:57]}  Bxc5 {[%clk 0:00:51]} 26. Nxc5 {[%clk 0:00:57]}  Bd5 {[%clk 0:00:51]} 27. Ra1 {[%clk 0:00:53]}  Rxa1 {[%clk 0:00:50]} 28. Kxa1 {[%clk 0:00:54]}  Re8 {[%clk 0:00:43]} 29. c4 {[%clk 0:00:53]}  Bg2 {[%clk 0:00:39]} 30. Kb2 {[%clk 0:00:53]}  f6 {[%clk 0:00:38]} 31. gxf6 {[%clk 0:00:53]}  gxf6 {[%clk 0:00:32]} 32. Rg3+ {[%clk 0:00:52]}  Kf7 {[%clk 0:00:32]} 33. Rxg2 {[%clk 0:00:53]} 1-0


[Site "https://www.chess.com"]

[Event "Titled Tuesday Blitz March 29 Early 2022"]
[White "Riehle, Marco"]
[Black "Nan, M K Khine Hlyan"]
[WhiteFideId "12904392"]
[BlackFideId "13002899"]
[WhiteElo "2462"]
[BlackElo "1943"]
[Result "1-0"]
[Round "03"]
[TimeControl "180+1"]
[Date "2022.03.30"]
[WhiteClock "0:02:35"]
[BlackClock "0:02:17"]

1. e4 {[%clk 0:03:00]}  d6 {[%clk 0:02:59]} 2. d4 {[%clk 0:02:59]}  g6 {[%clk 0:02:59]} 3. c4 {[%clk 0:02:54]}  Bg7 {[%clk 0:03:00]} 4. Nc3 {[%clk 0:02:53]}  e6 {[%clk 0:02:59]} 5. f3 {[%clk 0:02:52]}  Ne7 {[%clk 0:02:58]} 6. Be3 {[%clk 0:02:45]}  Nd7 {[%clk 0:02:58]} 7. Qd2 {[%clk 0:02:40]}  e5 {[%clk 0:02:55]} 8. d5 {[%clk 0:02:40]}  Nf6 {[%clk 0:02:54]} 9. O-O-O {[%clk 0:02:39]}  Bd7 {[%clk 0:02:33]} 10. Bd3 {[%clk 0:02:37]}  Neg8 {[%clk 0:02:27]} 11. Nge2 {[%clk 0:02:35]}  Qe7 {[%clk 0:02:27]} 12. g4 {[%clk 0:02:35]}  O-O-O {[%clk 0:02:26]} 13. h4 {[%clk 0:02:35]}  h5 {[%clk 0:02:24]} 14. g5 {[%clk 0:02:35]}  Ne8 {[%clk 0:02:23]} 15. Bxa7 {[%clk 0:02:35]}  b6 {[%clk 0:02:20]} 16. c5 {[%clk 0:02:35]}  dxc5 {[%clk 0:02:17]} 17. Ba6# {[%clk 0:02:35]} 1-0


[Site "https://www.chess.com"]

[Event "Titled Tuesday Blitz March 29 Early 2022"]
[White "Rodriguez, Santiago"]
[Black "Wong, Yinn Long"]
[WhiteFideId "3000591"]
[BlackFideId "5707684"]
[WhiteElo "2256"]
[BlackElo "2055"]
[Result "0-1"]
[Round "03"]
[TimeControl "180+1"]
[Date "2022.03.29"]
[WhiteClock "0:00:23"]
[BlackClock "0:00:51"]

1. d4 {[%clk 0:03:00]}  Nf6 {[%clk 0:02:59]} 2. Bg5 {[%clk 0:02:59]}  g6 {[%clk 0:02:59]} 3. Bxf6 {[%clk 0:03:00]}  exf6 {[%clk 0:02:59]} 4. e3 {[%clk 0:03:01]}  Bg7 {[%clk 0:03:00]} 5. c4 {[%clk 0:03:00]}  d6 {[%clk 0:03:00]} 6. Nc3 {[%clk 0:03:01]}  O-O {[%clk 0:03:01]} 7. g3 {[%clk 0:03:01]}  f5 {[%clk 0:03:02]} 8. Nge2 {[%clk 0:03:00]}  c6 {[%clk 0:03:03]} 9. Bg2 {[%clk 0:03:01]}  Nd7 {[%clk 0:03:03]} 10. b4 {[%clk 0:03:00]}  Nf6 {[%clk 0:03:04]} 11. Rb1 {[%clk 0:02:56]}  a6 {[%clk 0:03:02]} 12. Qd3 {[%clk 0:02:53]}  h5 {[%clk 0:03:01]} 13. h4 {[%clk 0:02:53]}  Re8 {[%clk 0:03:01]} 14. O-O {[%clk 0:02:52]}  Be6 {[%clk 0:02:58]} 15. d5 {[%clk 0:02:47]}  cxd5 {[%clk 0:02:46]} 16. Nxd5 {[%clk 0:02:47]}  Ng4 {[%clk 0:02:42]} 17. Rfd1 {[%clk 0:02:43]}  Rc8 {[%clk 0:02:41]} 18. Nef4 {[%clk 0:02:42]}  Ne5 {[%clk 0:02:41]} 19. Qe2 {[%clk 0:02:30]}  Nxc4 {[%clk 0:02:37]} 20. Nxe6 {[%clk 0:02:27]}  Rxe6 {[%clk 0:02:37]} 21. Nf4 {[%clk 0:02:25]}  Re7 {[%clk 0:02:37]} 22. Bd5 {[%clk 0:02:25]}  Ne5 {[%clk 0:02:32]} 23. b5 {[%clk 0:02:09]}  axb5 {[%clk 0:02:06]} 24. Rxb5 {[%clk 0:02:08]}  b6 {[%clk 0:01:57]} 25. Rdb1 {[%clk 0:02:04]}  Bh6 {[%clk 0:01:45]} 26. Rxb6 {[%clk 0:01:59]}  Bxf4 {[%clk 0:01:45]} 27. exf4 {[%clk 0:01:51]}  Ng4 {[%clk 0:01:45]} 28. Qa6 {[%clk 0:01:38]}  Kg7 {[%clk 0:01:31]} 29. Rxd6 {[%clk 0:01:35]}  Qe8 {[%clk 0:01:30]} 30. Bxf7 {[%clk 0:01:20]}  Re1+ {[%clk 0:01:23]} 31. Rxe1 {[%clk 0:00:52]}  Qxe1+ {[%clk 0:01:24]} 32. Qf1 {[%clk 0:00:48]}  Qxf1+ {[%clk 0:01:23]} 33. Kxf1 {[%clk 0:00:49]}  Kxf7 {[%clk 0:01:24]} 34. Rd2 {[%clk 0:00:38]}  Rc1+ {[%clk 0:01:19]} 35. Kg2 {[%clk 0:00:38]}  Ra1 {[%clk 0:01:18]} 36. Rd7+ {[%clk 0:00:35]}  Ke6 {[%clk 0:01:19]} 37. Ra7 {[%clk 0:00:36]}  Re1 {[%clk 0:01:14]} 38. Ra6+ {[%clk 0:00:35]}  Kf7 {[%clk 0:01:14]} 39. Ra7+ {[%clk 0:00:35]}  Re7 {[%clk 0:01:13]} 40. Ra6 {[%clk 0:00:35]}  Re2 {[%clk 0:01:13]} 41. Ra7+ {[%clk 0:00:34]}  Kf6 {[%clk 0:01:13]} 42. Ra6+ {[%clk 0:00:34]}  Kg7 {[%clk 0:01:14]} 43. Ra7+ {[%clk 0:00:34]}  Kh6 {[%clk 0:01:14]} 44. a4 {[%clk 0:00:33]}  Rxf2+ {[%clk 0:01:14]} 45. Kg1 {[%clk 0:00:33]}  Ra2 {[%clk 0:01:13]} 46. a5 {[%clk 0:00:33]}  Ne3 {[%clk 0:01:13]} 47. a6 {[%clk 0:00:32]}  Nd5 {[%clk 0:01:02]} 48. Rd7 {[%clk 0:00:26]}  Nb4 {[%clk 0:00:51]} 49. a7 {[%clk 0:00:23]}  Nc6 {[%clk 0:00:51]} 0-1


[Site "https://www.chess.com"]

[Event "Titled Tuesday Blitz March 29 Early 2022"]
[White "Schut, Han"]
[Black "Obolentseva, Alexandra"]
[WhiteFideId "1005561"]
[BlackFideId "24153648"]
[WhiteElo "2057"]
[BlackElo "2113"]
[Result "0-1"]
[Round "03"]
[TimeControl "180+1"]
[Date "2022.03.30"]
[WhiteClock "0:00:30"]
[BlackClock "0:01:07"]

1. e4 {[%clk 0:03:00]}  c5 {[%clk 0:02:59]} 2. Nf3 {[%clk 0:03:01]}  d6 {[%clk 0:02:56]} 3. d4 {[%clk 0:03:00]}  cxd4 {[%clk 0:02:57]} 4. Nxd4 {[%clk 0:03:01]}  Nf6 {[%clk 0:02:57]} 5. f3 {[%clk 0:03:02]}  a6 {[%clk 0:02:56]} 6. c4 {[%clk 0:03:01]}  e6 {[%clk 0:02:55]} 7. Nc3 {[%clk 0:03:00]}  Be7 {[%clk 0:02:55]} 8. Be3 {[%clk 0:03:00]}  Nbd7 {[%clk 0:02:55]} 9. Be2 {[%clk 0:03:00]}  O-O {[%clk 0:02:54]} 10. O-O {[%clk 0:02:59]}  Qc7 {[%clk 0:02:54]} 11. Qd2 {[%clk 0:02:59]}  b6 {[%clk 0:02:54]} 12. Rac1 {[%clk 0:02:58]}  Bb7 {[%clk 0:02:54]} 13. Rfd1 {[%clk 0:02:58]}  Rac8 {[%clk 0:02:54]} 14. Bf1 {[%clk 0:02:58]}  Qb8 {[%clk 0:02:51]} 15. Qf2 {[%clk 0:02:55]}  Rfd8 {[%clk 0:02:50]} 16. b4 {[%clk 0:02:46]}  d5 {[%clk 0:02:42]} 17. exd5 {[%clk 0:02:32]}  exd5 {[%clk 0:02:42]} 18. Nxd5 {[%clk 0:02:27]}  Nxd5 {[%clk 0:02:36]} 19. cxd5 {[%clk 0:02:28]}  Rxc1 {[%clk 0:02:23]} 20. Rxc1 {[%clk 0:02:25]}  Bxd5 {[%clk 0:02:17]} 21. a3 {[%clk 0:02:17]}  b5 {[%clk 0:02:14]} 22. Nf5 {[%clk 0:02:03]}  Bf8 {[%clk 0:02:13]} 23. Bc5 {[%clk 0:01:56]}  Nxc5 {[%clk 0:02:08]} 24. bxc5 {[%clk 0:01:54]}  Bc4 {[%clk 0:02:04]} 25. Bxc4 {[%clk 0:01:34]}  bxc4 {[%clk 0:02:05]} 26. Qg3 {[%clk 0:01:34]}  Bxc5+ {[%clk 0:01:58]} 27. Kf1 {[%clk 0:01:28]}  Qxg3 {[%clk 0:01:52]} 28. Nxg3 {[%clk 0:01:28]}  Bxa3 {[%clk 0:01:42]} 29. Rxc4 {[%clk 0:01:24]}  a5 {[%clk 0:01:43]} 30. Ne4 {[%clk 0:01:17]}  Bb4 {[%clk 0:01:42]} 31. Ke2 {[%clk 0:01:13]}  f6 {[%clk 0:01:40]} 32. Nf2 {[%clk 0:01:04]}  Rd2+ {[%clk 0:01:39]} 33. Ke3 {[%clk 0:01:01]}  Ra2 {[%clk 0:01:40]} 34. Nd3 {[%clk 0:00:59]}  Rxg2 {[%clk 0:01:37]} 35. Rc8+ {[%clk 0:00:55]}  Kf7 {[%clk 0:01:37]} 36. Rc7+ {[%clk 0:00:55]}  Be7 {[%clk 0:01:29]} 37. Nf4 {[%clk 0:00:50]}  Rg1 {[%clk 0:01:27]} 38. Ke2 {[%clk 0:00:41]}  Ke8 {[%clk 0:01:17]} 39. Ra7 {[%clk 0:00:32]}  Bb4 {[%clk 0:01:11]} 40. Ne6 {[%clk 0:00:30]}  Re1+ {[%clk 0:01:07]} 0-1


[Site "https://www.chess.com"]

[Event "Titled Tuesday Blitz March 29 Early 2022"]
[White "Seo, Jung Min"]
[Black "Baches Garcia, Guillermo"]
[WhiteFideId "1734687"]
[BlackFideId "2209764"]
[WhiteElo "2401"]
[BlackElo "2493"]
[Result "1-0"]
[Round "03"]
[TimeControl "180+1"]
[Date "2022.03.30"]
[WhiteClock "0:01:55"]
[BlackClock "0:00:31"]

1. e4 {[%clk 0:03:00]}  c5 {[%clk 0:03:00]} 2. Nf3 {[%clk 0:03:00]}  d6 {[%clk 0:03:00]} 3. d4 {[%clk 0:03:01]}  cxd4 {[%clk 0:03:01]} 4. Nxd4 {[%clk 0:03:01]}  Nf6 {[%clk 0:03:02]} 5. Nc3 {[%clk 0:03:02]}  Nc6 {[%clk 0:03:03]} 6. Be2 {[%clk 0:03:00]}  e5 {[%clk 0:03:02]} 7. Nb3 {[%clk 0:03:00]}  Be7 {[%clk 0:03:02]} 8. O-O {[%clk 0:03:00]}  O-O {[%clk 0:03:03]} 9. f4 {[%clk 0:02:58]}  a5 {[%clk 0:02:58]} 10. a4 {[%clk 0:02:49]}  Nb4 {[%clk 0:02:57]} 11. Be3 {[%clk 0:02:44]}  Bd7 {[%clk 0:02:39]} 12. Bf3 {[%clk 0:02:41]}  Bc6 {[%clk 0:02:35]} 13. Nd5 {[%clk 0:02:37]}  Bxd5 {[%clk 0:02:29]} 14. exd5 {[%clk 0:02:37]}  e4 {[%clk 0:02:28]} 15. Be2 {[%clk 0:02:34]}  Nbxd5 {[%clk 0:02:23]} 16. Bd4 {[%clk 0:02:34]}  Rc8 {[%clk 0:02:00]} 17. c3 {[%clk 0:02:31]}  Qd7 {[%clk 0:01:22]} 18. Nd2 {[%clk 0:02:30]}  Nc7 {[%clk 0:01:04]} 19. Nc4 {[%clk 0:02:28]}  Qf5 {[%clk 0:00:55]} 20. Qb3 {[%clk 0:02:19]}  Ne6 {[%clk 0:00:42]} 21. Ne3 {[%clk 0:02:19]}  Nxd4 {[%clk 0:00:40]} 22. Nxf5 {[%clk 0:02:13]}  Nxb3 {[%clk 0:00:39]} 23. Nxe7+ {[%clk 0:02:13]}  Kh8 {[%clk 0:00:39]} 24. Nxc8 {[%clk 0:02:08]}  Nxa1 {[%clk 0:00:36]} 25. Nxd6 {[%clk 0:02:08]}  Nc2 {[%clk 0:00:32]} 26. Kf2 {[%clk 0:01:56]}  e3+ {[%clk 0:00:31]} 27. Kf3 {[%clk 0:01:55]} 1-0


[Site "https://www.chess.com"]

[Event "Titled Tuesday Blitz March 29 Early 2022"]
[White "Sergienko, Sergey"]
[Black "Di Nicolantonio, Lucas"]
[WhiteFideId "4115791"]
[BlackFideId "680460"]
[WhiteElo "2193"]
[BlackElo "2381"]
[Result "0-1"]
[Round "03"]
[TimeControl "180+1"]
[Date "2022.03.30"]
[WhiteClock "0:00:22"]
[BlackClock "0:00:48"]

1. e4 {[%clk 0:02:59]}  c5 {[%clk 0:02:56]} 2. Nf3 {[%clk 0:02:57]}  Nc6 {[%clk 0:02:57]} 3. Bb5 {[%clk 0:02:56]}  e5 {[%clk 0:02:56]} 4. O-O {[%clk 0:02:50]}  Bd6 {[%clk 0:02:43]} 5. Na3 {[%clk 0:02:35]}  Nge7 {[%clk 0:02:36]} 6. Re1 {[%clk 0:02:25]}  O-O {[%clk 0:02:31]} 7. Bf1 {[%clk 0:02:14]}  Bc7 {[%clk 0:02:23]} 8. Nc4 {[%clk 0:02:09]}  d6 {[%clk 0:02:12]} 9. h3 {[%clk 0:02:02]}  f5 {[%clk 0:02:03]} 10. d3 {[%clk 0:01:51]}  Kh8 {[%clk 0:01:56]} 11. a3 {[%clk 0:01:22]}  Ng6 {[%clk 0:01:39]} 12. Rb1 {[%clk 0:01:14]}  Nh4 {[%clk 0:01:27]} 13. Nxh4 {[%clk 0:01:10]}  Qxh4 {[%clk 0:01:27]} 14. g3 {[%clk 0:01:05]}  Qf6 {[%clk 0:01:25]} 15. Qd2 {[%clk 0:00:38]}  Nd4 {[%clk 0:01:19]} 16. Bg2 {[%clk 0:00:37]}  fxe4 {[%clk 0:01:15]} 17. dxe4 {[%clk 0:00:37]}  Bxh3 {[%clk 0:01:14]} 18. c3 {[%clk 0:00:31]}  Nf3+ {[%clk 0:01:13]} 19. Bxf3 {[%clk 0:00:29]}  Qxf3 {[%clk 0:01:13]} 20. Ne3 {[%clk 0:00:29]}  Bd8 {[%clk 0:01:00]} 21. b4 {[%clk 0:00:26]}  Bg5 {[%clk 0:00:50]} 22. Rb2 {[%clk 0:00:25]}  Bxe3 {[%clk 0:00:47]} 23. fxe3 {[%clk 0:00:22]}  Qxg3+ {[%clk 0:00:48]} 0-1


[Site "https://www.chess.com"]

[Event "Titled Tuesday Blitz March 29 Early 2022"]
[White "Shandrygin, Nikita"]
[Black "Kucuksari, Kaan"]
[WhiteFideId "24198668"]
[BlackFideId "6380166"]
[WhiteElo "2324"]
[BlackElo "2305"]
[Result "0-1"]
[Round "03"]
[TimeControl "180+1"]
[Date "2022.03.30"]
[WhiteClock "0:00:04"]
[BlackClock "0:00:10"]

1. Nf3 {[%clk 0:03:00]}  Nf6 {[%clk 0:02:54]} 2. g3 {[%clk 0:03:00]}  d5 {[%clk 0:02:54]} 3. d3 {[%clk 0:02:58]}  c6 {[%clk 0:02:54]} 4. Bg2 {[%clk 0:02:59]}  Bg4 {[%clk 0:02:54]} 5. Ne5 {[%clk 0:02:58]}  Bf5 {[%clk 0:02:53]} 6. c4 {[%clk 0:02:59]}  Nbd7 {[%clk 0:02:53]} 7. Nxd7 {[%clk 0:02:56]}  Qxd7 {[%clk 0:02:54]} 8. Nd2 {[%clk 0:02:55]}  Bh3 {[%clk 0:02:53]} 9. Bxh3 {[%clk 0:02:49]}  Qxh3 {[%clk 0:02:54]} 10. cxd5 {[%clk 0:02:49]}  cxd5 {[%clk 0:02:50]} 11. Qa4+ {[%clk 0:02:49]}  Qd7 {[%clk 0:02:50]} 12. Qxd7+ {[%clk 0:02:47]}  Kxd7 {[%clk 0:02:51]} 13. Nf3 {[%clk 0:02:47]}  e6 {[%clk 0:02:48]} 14. Bd2 {[%clk 0:02:46]}  Bd6 {[%clk 0:02:48]} 15. Bc3 {[%clk 0:02:46]}  Rhc8 {[%clk 0:02:47]} 16. Kd2 {[%clk 0:02:46]}  b5 {[%clk 0:02:46]} 17. a3 {[%clk 0:02:44]}  a5 {[%clk 0:02:46]} 18. Bxf6 {[%clk 0:02:44]}  gxf6 {[%clk 0:02:44]} 19. Rhc1 {[%clk 0:02:40]}  e5 {[%clk 0:02:37]} 20. Rxc8 {[%clk 0:02:14]}  Rxc8 {[%clk 0:02:35]} 21. Rc1 {[%clk 0:02:15]}  Rb8 {[%clk 0:02:27]} 22. Nh4 {[%clk 0:01:52]}  a4 {[%clk 0:02:22]} 23. Nf5 {[%clk 0:01:42]}  Bf8 {[%clk 0:02:21]} 24. e4 {[%clk 0:01:29]}  d4 {[%clk 0:02:20]} 25. f4 {[%clk 0:01:16]}  b4 {[%clk 0:02:18]} 26. axb4 {[%clk 0:01:16]}  Bxb4+ {[%clk 0:02:16]} 27. Kc2 {[%clk 0:01:15]}  a3 {[%clk 0:01:51]} 28. bxa3 {[%clk 0:01:13]}  Bxa3 {[%clk 0:01:52]} 29. Rb1 {[%clk 0:01:14]}  Rc8+ {[%clk 0:01:13]} 30. Kd2 {[%clk 0:01:11]}  Rc7 {[%clk 0:01:13]} 31. Rb6 {[%clk 0:00:58]}  Be7 {[%clk 0:01:03]} 32. h4 {[%clk 0:00:20]}  Ra7 {[%clk 0:01:01]} 33. Ke2 {[%clk 0:00:19]}  Kc7 {[%clk 0:00:42]} 34. Rb2 {[%clk 0:00:14]}  Bc5 {[%clk 0:00:29]} 35. Rc2 {[%clk 0:00:10]}  Kb6 {[%clk 0:00:27]} 36. Rb2+ {[%clk 0:00:10]}  Kc6 {[%clk 0:00:27]} 37. Rc2 {[%clk 0:00:11]}  Kb5 {[%clk 0:00:25]} 38. Kf3 {[%clk 0:00:10]}  Ra3 {[%clk 0:00:24]} 39. Rd2 {[%clk 0:00:09]}  Bb4 {[%clk 0:00:24]} 40. Rd1 {[%clk 0:00:09]}  Ka4 {[%clk 0:00:21]} 41. Kg4 {[%clk 0:00:09]}  Kb3 {[%clk 0:00:21]} 42. fxe5 {[%clk 0:00:09]}  Kc2 {[%clk 0:00:19]} 43. Rf1 {[%clk 0:00:08]}  fxe5 {[%clk 0:00:20]} 44. Nh6 {[%clk 0:00:05]}  Kxd3 {[%clk 0:00:18]} 45. Nxf7 {[%clk 0:00:06]}  Kxe4 {[%clk 0:00:18]} 46. Ng5+ {[%clk 0:00:06]}  Kd5 {[%clk 0:00:18]} 47. Nxh7 {[%clk 0:00:05]}  d3 {[%clk 0:00:18]} 48. Nf6+ {[%clk 0:00:05]}  Kd4 {[%clk 0:00:18]} 49. h5 {[%clk 0:00:06]}  d2 {[%clk 0:00:11]} 50. Kf5 {[%clk 0:00:05]}  Rf3+ {[%clk 0:00:09]} 51. Rxf3 {[%clk 0:00:05]}  d1=Q {[%clk 0:00:10]} 52. Kg4 {[%clk 0:00:04]}  e4 {[%clk 0:00:10]} 0-1


[Site "https://www.chess.com"]

[Event "Titled Tuesday Blitz March 29 Early 2022"]
[White "Sztokbant, Bernardo Vainzoff"]
[Black "Fernandez, Daniel Howard"]
[WhiteFideId "2115956"]
[BlackFideId "5801605"]
[WhiteElo "2237"]
[BlackElo "2466"]
[Result "0-1"]
[Round "03"]
[TimeControl "180+1"]
[Date "2022.03.30"]
[WhiteClock "0:00:01"]
[BlackClock "0:00:29"]

1. e4 {[%clk 0:03:00]}  e5 {[%clk 0:02:59]} 2. Nf3 {[%clk 0:03:00]}  Nc6 {[%clk 0:02:59]} 3. Bc4 {[%clk 0:02:59]}  Nf6 {[%clk 0:02:58]} 4. d3 {[%clk 0:02:59]}  Be7 {[%clk 0:02:58]} 5. O-O {[%clk 0:02:58]}  d6 {[%clk 0:02:56]} 6. c3 {[%clk 0:02:57]}  O-O {[%clk 0:02:51]} 7. Re1 {[%clk 0:02:56]}  a6 {[%clk 0:02:50]} 8. Bb3 {[%clk 0:02:55]}  Kh8 {[%clk 0:02:49]} 9. Nbd2 {[%clk 0:02:55]}  Ng8 {[%clk 0:02:45]} 10. d4 {[%clk 0:02:53]}  Qe8 {[%clk 0:02:40]} 11. Nc4 {[%clk 0:02:49]}  Bg4 {[%clk 0:02:34]} 12. dxe5 {[%clk 0:02:38]}  dxe5 {[%clk 0:02:33]} 13. h3 {[%clk 0:02:39]}  Rd8 {[%clk 0:02:31]} 14. Qe2 {[%clk 0:02:39]}  Bxf3 {[%clk 0:02:18]} 15. Qxf3 {[%clk 0:02:39]}  Bc5 {[%clk 0:02:18]} 16. Be3 {[%clk 0:02:31]}  Bxe3 {[%clk 0:02:18]} 17. Nxe3 {[%clk 0:02:32]}  Nf6 {[%clk 0:02:12]} 18. Rad1 {[%clk 0:02:29]}  Qe7 {[%clk 0:02:05]} 19. Nf5 {[%clk 0:02:24]}  Qc5 {[%clk 0:02:04]} 20. Rxd8 {[%clk 0:02:11]}  Nxd8 {[%clk 0:01:55]} 21. Qg3 {[%clk 0:02:11]}  g6 {[%clk 0:01:53]} 22. Qh4 {[%clk 0:02:05]}  Qb6 {[%clk 0:01:50]} 23. Qh6 {[%clk 0:02:01]}  Rg8 {[%clk 0:01:48]} 24. Ne7 {[%clk 0:01:39]}  Re8 {[%clk 0:01:48]} 25. Rd1 {[%clk 0:01:39]}  Nxe4 {[%clk 0:01:39]} 26. Qh4 {[%clk 0:01:37]}  Nf6 {[%clk 0:01:17]} 27. Qg5 {[%clk 0:00:52]}  Qxf2+ {[%clk 0:01:08]} 28. Kh1 {[%clk 0:00:37]}  Kg7 {[%clk 0:01:05]} 29. Qxe5 {[%clk 0:00:25]}  Nc6 {[%clk 0:01:02]} 30. Nxc6 {[%clk 0:00:15]}  Rxe5 {[%clk 0:01:01]} 31. Nxe5 {[%clk 0:00:16]}  Qxb2 {[%clk 0:00:45]} 32. Nxf7 {[%clk 0:00:15]}  Ne4 {[%clk 0:00:45]} 33. Kh2 {[%clk 0:00:06]}  Qxc3 {[%clk 0:00:42]} 34. Rd7 {[%clk 0:00:02]}  Qg3+ {[%clk 0:00:41]} 35. Kg1 {[%clk 0:00:01]}  Kf6 {[%clk 0:00:37]} 36. Nh6 {[%clk 0:00:01]}  Qe3+ {[%clk 0:00:33]} 37. Kh1 {[%clk 0:00:01]}  Qxh6 {[%clk 0:00:34]} 38. Rxc7 {[%clk 0:00:01]}  Qe3 {[%clk 0:00:29]} 0-1


[Site "https://www.chess.com"]

[Event "Titled Tuesday Blitz March 29 Early 2022"]
[White "Tanenbaum, Zachary"]
[Black "Guseva, Marina"]
[WhiteFideId "2060850"]
[BlackFideId "4149351"]
[WhiteElo "2168"]
[BlackElo "2160"]
[Result "1-0"]
[Round "03"]
[TimeControl "180+1"]
[Date "2022.03.30"]
[WhiteClock "0:00:59"]
[BlackClock "0:00:01"]

1. e4 {[%clk 0:03:00]}  c5 {[%clk 0:02:59]} 2. Nf3 {[%clk 0:03:00]}  Nc6 {[%clk 0:02:58]} 3. Nc3 {[%clk 0:03:01]}  e5 {[%clk 0:02:57]} 4. Bc4 {[%clk 0:03:01]}  Be7 {[%clk 0:02:56]} 5. d3 {[%clk 0:03:01]}  d6 {[%clk 0:02:54]} 6. Nd2 {[%clk 0:03:01]}  Bg5 {[%clk 0:02:53]} 7. Nf1 {[%clk 0:03:01]}  Bxc1 {[%clk 0:02:52]} 8. Rxc1 {[%clk 0:03:02]}  Nge7 {[%clk 0:02:52]} 9. Ne3 {[%clk 0:03:01]}  O-O {[%clk 0:02:51]} 10. O-O {[%clk 0:03:01]}  Rb8 {[%clk 0:02:50]} 11. a4 {[%clk 0:03:00]}  a6 {[%clk 0:02:49]} 12. Ned5 {[%clk 0:02:58]}  Nxd5 {[%clk 0:02:44]} 13. Nxd5 {[%clk 0:02:59]}  b5 {[%clk 0:02:42]} 14. axb5 {[%clk 0:02:59]}  axb5 {[%clk 0:02:42]} 15. Ba2 {[%clk 0:02:56]}  Be6 {[%clk 0:02:37]} 16. c3 {[%clk 0:02:56]}  b4 {[%clk 0:02:35]} 17. f4 {[%clk 0:02:45]}  exf4 {[%clk 0:02:31]} 18. Rxf4 {[%clk 0:02:44]}  bxc3 {[%clk 0:02:30]} 19. bxc3 {[%clk 0:02:44]}  Rb2 {[%clk 0:02:29]} 20. Rc2 {[%clk 0:02:44]}  Rxc2 {[%clk 0:02:21]} 21. Qxc2 {[%clk 0:02:44]}  Qg5 {[%clk 0:02:18]} 22. Rf3 {[%clk 0:02:29]}  Rb8 {[%clk 0:01:27]} 23. Rg3 {[%clk 0:02:21]}  Qe5 {[%clk 0:01:23]} 24. Qd2 {[%clk 0:02:12]}  g6 {[%clk 0:01:21]} 25. Rg5 {[%clk 0:02:02]}  Qg7 {[%clk 0:01:16]} 26. h3 {[%clk 0:01:52]}  Ne5 {[%clk 0:01:04]} 27. d4 {[%clk 0:01:47]}  cxd4 {[%clk 0:01:03]} 28. cxd4 {[%clk 0:01:48]}  Nc6 {[%clk 0:01:03]} 29. e5 {[%clk 0:01:17]}  dxe5 {[%clk 0:01:02]} 30. dxe5 {[%clk 0:01:18]}  Nxe5 {[%clk 0:01:02]} 31. Ne7+ {[%clk 0:01:18]}  Kh8 {[%clk 0:01:01]} 32. Qd6 {[%clk 0:01:10]}  Nf3+ {[%clk 0:00:50]} 33. gxf3 {[%clk 0:01:03]}  Qa1+ {[%clk 0:00:49]} 34. Kh2 {[%clk 0:01:01]}  Qxa2+ {[%clk 0:00:48]} 35. Rg2 {[%clk 0:01:01]}  Rb5 {[%clk 0:00:01]} 36. Rxa2 {[%clk 0:00:59]} 1-0


[Site "https://www.chess.com"]